bitfinex-derivatives/quotes_ETHF0:USTF0_20250708
["timestamp","ask_amount","ask_price","bid_price","bid_amount"]
[1751995918713,0.76399,2617.5,2617.4,0.76401]
[1751995918909,1.41629,2617.5,2617.4,1.44091]
[1751995919212,0.76397,2617.6,2617.5,0.76398]
[1751995919412,1.41627,2617.6,2617.5,1.44088]
[1751995919609,2.4807,2618.0,2617.7,0.76392]
[1751995919814,1.4162,2617.8,2617.7,3.2078]
[1751995920008,1.4162,2617.8,2617.7,3.8847]
[1751995920608,1.0372,2618.4,2617.7,5.68462]
[1751995920815,0.38379962,2618.6,2618.3,3.2078]
[1751995921011,1.41602,2618.4,2618.3,3.2078]
[1751995921210,1.41602,2618.4,2618.3,3.97155]
[1751995921411,0.38379962,2618.6,2618.5,0.76369]
[1751995921611,0.76369,2618.5,2618.3,3.2078]
[1751995921911,0.38379962,2618.6,2618.4,0.76369]
[1751995922106,0.76372,2618.4,2618.3,3.2078]
[1751995922614,0.38379962,2618.6,2618.2,0.76375]
[1751995922812,0.76373,2618.4,2618.0,3.2078]
[1751995923015,0.7638,2618.1,2618.0,3.97162]
[1751995923211,1.4228,2618.8,2618.3,0.76375]
[1751995923212,0.76372,2618.4,2618.3,0.76375]
[1751995923413,1.404,2618.7,2618.3,3.2078]
[1751995923717,1.404,2618.7,2618.6,0.76366]
[1751995923916,2.18642,2618.8,2618.7,0.76363]
[1751995923917,0.76362,2618.8,2618.7,0.76363]
[1751995924114,5.00859,2618.9,2618.8,0.7636]
[1751995924308,3.97139,2618.9,2618.8,0.7636]
[1751995924510,0.76355,2619.0,2618.9,0.76356]
[1751995924716,0.76356,2619.0,2618.7,3.2078]
[1751995924915,0.76353,2619.1,2619.0,0.76354]
[1751995925115,1.8007,2619.2,2619.1,0.76351]
[1751995925311,0.76346,2619.3,2619.0,3.2078]
[1751995925518,4.245,2619.7,2619.0,3.2078]
[1751995925718,4.245,2619.7,2619.4,0.76341]
[1751995926026,2.94522,2620.2,2619.3,5.11643]
[1751995926218,2.94522,2620.2,2619.7,3.2078]
[1751995926517,0.7633,2619.9,2619.7,3.2078]
[1751995926720,2.5094,2620.2,2619.7,3.97112]
[1751995926917,0.76331,2619.8,2619.7,3.97112]
[1751995927219,4.41742,2620.2,2619.7,3.97114]
[1751995927514,0.76331,2619.8,2619.7,4.2438]
[1751995927715,0.76331,2619.8,2619.7,3.2078]
[1751995927910,1.90829,2619.8,2619.4,3.2078]
[1751995928110,1.4722,2620.0,2619.7,3.2078]
[1751995928309,3.2078,2620.5,2619.8,1.036]
[1751995928514,0.76331,2619.8,2619.7,3.2078]
[1751995928715,0.76341,2619.5,2619.4,3.2078]
[1751995929115,1.80061,2619.5,2619.4,3.2078]
[1751995929410,1.469,2619.7,2619.3,0.76344]
[1751995929619,2.5062,2619.7,2619.1,4.2438]
[1751995929819,0.76345,2619.4,2619.1,5.0073]
[1751995930015,0.76342,2619.5,2619.2,1.79948]
[1751995930224,1.469,2619.7,2619.3,0.76345]
[1751995930518,1.469,2619.7,2619.4,3.2078]
[1751995930714,2.5062,2619.7,2619.1,3.2078]
[1751995930921,0.76348,2619.2,2619.1,3.2078]
[1751995931320,2.23248,2619.2,2619.1,3.2078]
[1751995932121,3.26968,2619.2,2619.1,3.2078]
[1751995932323,9.41495,2619.2,2618.8,3.2078]
[1751995932621,7.3532806,2619.0,2618.5,3.2078]
[1751995932819,0.76367,2618.6,2618.5,3.2078]
[1751995933522,0.76364,2618.7,2618.5,3.97147]
[1751995933712,0.76364,2618.7,2618.5,3.2078]
[1751995933913,0.76366,2618.6,2618.5,3.2078]
[1751995935122,0.76365,2618.7,2618.5,3.97147]
[1751995935322,0.76366,2618.6,2618.5,3.2078]
[1751995936023,0.76366,2618.6,2618.5,3.97149]
[1751995936225,0.76362,2618.8,2618.6,0.76364]
[1751995936420,0.76364,2618.7,2618.5,3.97148]
[1751995936824,0.76366,2618.6,2618.5,3.97148]
[1751995937022,0.76365,2618.7,2618.5,3.97148]
[1751995937317,3.2078,2619.1,2618.6,1.036]
[1751995937318,3.97133,2619.1,2618.6,1.036]
[1751995937523,3.97133,2619.1,2618.6,4.40565]
[1751995937721,3.97133,2619.1,2619.0,0.76354]
[1751995937921,3.2078,2619.1,2618.6,2.4965]
[1751995938125,0.76359,2618.9,2618.8,0.76359]
[1751995938829,5.1166,2619.1,2618.6,2.4965]
[1751995939029,0.76366,2618.6,2618.5,3.2078]
[1751995939225,0.76366,2618.6,2618.5,3.97149]
[1751995939529,0.76365,2618.7,2618.6,0.76365]
[1751995939725,0.76366,2618.6,2618.5,3.2078]
[1751995939924,0.76366,2618.6,2617.6,6.36]
[1751995939925,0.76374,2618.3,2618.2,3.2078]
[1751995940130,1.80094,2618.3,2618.2,3.97157]
[1751995940325,1.0372,2618.3,2618.2,3.97157]
[1751995941727,1.0372,2618.3,2618.2,9.4159906]
[1751995942032,1.0372,2618.3,2618.2,3.97157]
[1751995942729,0.76383,2618.0,2617.9,3.2078]
[1751995943028,0.76383,2618.0,2617.5,3.21895795]
[1751995943029,0.76395,2617.6,2617.5,3.97178]
[1751995943430,0.76394,2617.7,2617.6,0.76393]
[1751995943827,0.76385,2618.0,2617.9,0.76384]
[1751995944029,1.0372,2618.3,2617.9,5.4444206]
[1751995944231,1.0372,2618.3,2618.2,3.97157]
[1751995944530,0.7638,2618.1,2618.0,0.76382]
[1751995944926,0.9854,2618.6,2617.9,3.2078]
[1751995945125,1.5655,2618.9,2618.2,5.11722]
[1751995945330,0.76365,2618.7,2618.6,0.76364]
[1751995946133,1.5655,2618.9,2618.4,1.90925]
[1751995946431,0.9854,2618.8,2618.5,3.2078]
[1751995946636,1.5655,2618.9,2618.4,0.76369]
[1751995946637,0.76369,2618.5,2618.4,0.76369]
[1751995946833,0.76375,2618.3,2618.2,3.97156]
[1751995947330,0.9854,2618.5,2618.4,0.76372]
[1751995947535,0.76367,2618.6,2618.5,0.76366]
[1751995947935,6.9734206,2619.0,2618.4,1.90928]
[1751995947936,1.529,2619.0,2618.4,1.90928]
[1751995948137,0.76361,2618.9,2618.8,0.76358]
[1751995948731,0.76362,2618.8,2618.7,0.76361]
[1751995948936,0.76359,2618.9,2618.8,0.76358]
[1751995949136,2.9968,2619.0,2618.9,0.76357]
[1751995949341,3.97134,2619.1,2619.0,0.76354]
[1751995949530,2.4532,2619.4,2618.8,1.90901]
[1751995949735,2.4532,2619.4,2618.9,5.11673]
[1751995949931,2.4532,2619.4,2619.3,0.76345]
[1751995950135,1.4678,2619.4,2619.3,0.76345]
[1751995950438,0.9854,2619.4,2618.9,3.2078]
[1751995950647,0.76354,2619.0,2618.9,0.76355]
[1751995950837,0.76359,2618.9,2618.8,0.76359]
[1751995951135,2.20269,2618.9,2618.8,0.76359]
[1751995951333,1.4391,2618.9,2618.8,0.76359]
[1751995951531,0.76363,2618.8,2618.7,0.76362]
[1751995951740,0.76363,2618.7,2618.6,1.5235]
[1751995951937,0.76362,2618.8,2618.7,0.76361]
[1751995953038,0.76362,2618.8,2618.5,3.2078]
[1751995953039,0.76365,2618.7,2618.6,0.76364]
[1751995953945,0.76361,2618.9,2618.8,0.76357]
[1751995954145,0.76365,2618.7,2618.6,0.76362]
[1751995954341,0.76366,2618.6,2618.5,3.2078]
[1751995954644,0.76366,2618.6,2618.5,3.97149]
[1751995955548,0.76374,2618.4,2618.3,0.76373]
[1751995956446,1.90922,2618.5,2618.0,1.65825795]
[1751995956647,0.76383,2618.0,2617.9,3.97165]
[1751995956848,0.76383,2618.0,2617.9,3.2078]
[1751995957044,0.76383,2618.0,2617.5,4.86605795]
[1751995957045,0.76395,2617.6,2617.5,4.86605795]
[1751995957243,7.3543706,2617.6,2617.2,1.0007]
[1751995957448,6.2084606,2617.3,2617.2,1.0007]
[1751995957650,0.76404,2617.3,2617.2,1.0007]
[1751995957850,84.03569,2617.9,2617.2,1.0007]
[1751995958151,83.6826,2617.9,2617.4,3.2078]
[1751995958352,0.76396,2617.6,2617.4,3.2078]
[1751995958552,43.8245,2617.8,2617.4,3.2078]
[1751995958751,0.76396,2617.6,2617.4,3.9718]
[1751995958952,82.126,2617.9,2617.4,3.97179]
[1751995959148,82.126,2617.9,2617.6,0.76393]
[1751995959149,55.009,2617.9,2617.6,0.76393]
[1751995959357,55.009,2617.9,2617.7,0.76392]
[1751995959358,0.76391,2617.8,2617.7,0.76392]
[1751995959649,0.76398,2617.5,2617.4,3.2078]
[1751995959852,0.76407,2617.2,2617.1,3.2078]
[1751995960450,0.76407,2617.2,2617.1,3.97188]
[1751995960650,0.76406,2617.3,2617.2,0.76406]
[1751995960851,0.76407,2617.2,2617.1,3.2078]
[1751995961758,0.76407,2617.2,2617.1,3.9719]
[1751995962057,0.76407,2617.2,2617.1,3.2078]
[1751995962258,1.74947,2617.2,2617.1,3.2078]
[1751995962453,1.74947,2617.2,2616.6,2.42248795]
[1751995962454,1.91025,2617.1,2616.6,1.65825795]
[1751995962657,1.91025,2617.1,2616.2,3.2078]
[1751995962658,5.4444206,2616.8,2616.2,3.2078]
[1751995962853,0.76433,2616.3,2616.2,3.2078]
[1751995963249,0.9854,2616.3,2615.9,4.86605795]
[1751995963548,45.91851,2616.5,2615.7,1.65825795]
[1751995963757,0.76446,2615.9,2615.7,0.76449]
[1751995964156,0.76448,2615.8,2615.6,4.97301]
[1751995964454,0.76448,2615.8,2615.7,0.76449]
[1751995964756,1.91093,2616.2,2615.6,3.97232]
[1751995964962,0.76446,2615.9,2615.7,0.76449]
[1751995965257,0.7645,2615.7,2615.6,3.2078]
[1751995965458,0.7645,2615.7,2615.6,3.97233]
[1751995965854,1.5327,2616.2,2615.6,4.2085]
[1751995966053,0.7644,2616.1,2616.0,0.7644]
[1751995966254,29.03366,2616.6,2616.0,1.0007]
[1751995966450,0.76439,2616.1,2616.0,1.0007]
[1751995966657,0.76442,2616.0,2615.9,0.76443]
[1751995966855,1.5443,2616.4,2616.0,0.7644]
[1751995967053,0.76437,2616.2,2616.1,0.76437]
[1751995967859,0.76434,2616.3,2616.2,0.76434]
[1751995968260,0.76439,2616.1,2616.0,2.28371]
[1751995968564,1.91076,2616.4,2615.9,4.2085]
[1751995968565,0.76442,2616.0,2615.9,3.97223]
[1751995968959,0.9854,2616.3,2615.5,1.5463]
[1751995969164,3.2078,2616.1,2615.7,0.76449]
[1751995969462,3.2078,2616.1,2615.4,3.97237]
[1751995969463,0.76456,2615.5,2615.4,3.97237]
[1751995969662,0.76455,2615.6,2615.5,0.76456]
[1751995969958,0.76456,2615.5,2615.4,3.97237]
[1751995970360,1.5758,2616.0,2615.4,6.11993]
[1751995970665,0.76445,2615.9,2615.7,0.76449]
[1751995970860,3.48666,2616.3,2615.8,0.76447]
[1751995971060,4.47206,2616.3,2615.8,0.76447]
[1751995971261,4.47206,2616.3,2615.7,0.76448]
[1751995971262,0.76447,2615.9,2615.7,0.76448]
[1751995971662,0.76447,2615.9,2615.8,0.76447]
[1751995971858,0.7644,2616.1,2616.0,0.76441]
[1751995972064,3.2078,2616.5,2616.2,0.76435]
[1751995972364,3.2078,2616.5,2616.0,1.0007]
[1751995972365,3.97208,2616.5,2616.4,0.7643]
[1751995972565,3.2078,2616.5,2616.4,1.7656]
[1751995972764,3.2078,2616.5,2616.4,0.7643]
[1751995973167,0.76433,2616.4,2616.3,0.76431]
[1751995973359,0.76433,2616.3,2616.2,2.34374]
[1751995973665,0.76439,2616.1,2616.0,3.2078]
[1751995973864,0.76446,2616.0,2615.9,0.76442]
[1751995974059,0.76444,2616.0,2615.9,0.76442]
[1751995974264,1.91092,2616.2,2616.1,0.76437]
[1751995974265,0.76439,2616.2,2616.1,0.76437]
[1751995975169,0.76438,2616.2,2616.1,0.76436]
[1751995975368,0.76435,2616.3,2616.2,0.76434]
[1751995975666,5.11847,2616.6,2616.2,0.76434]
[1751995975667,3.2078,2616.6,2616.5,0.76427]
[1751995975868,3.97204,2616.6,2616.5,0.76427]
[1751995976660,3.2078,2616.6,2616.5,0.76427]
[1751995976966,0.76432,2616.4,2616.3,0.7643]
[1751995977168,0.7643,2616.5,2616.4,0.76427]
[1751995978466,0.76434,2616.4,2616.3,0.76431]
[1751995979672,0.56434,2616.4,2616.3,0.76431]
[1751995980375,0.76439,2616.1,2616.0,4.7563]
[1751995980572,3.2078,2616.6,2616.1,0.76436]
[1751995980573,0.76439,2616.2,2616.1,0.76436]
[1751995980775,0.76439,2616.1,2616.0,3.97219]
[1751995980968,0.76439,2616.1,2616.0,3.2078]
[1751995981770,0.76439,2616.1,2616.0,3.97222]
[1751995981968,0.76439,2616.1,2616.0,3.2078]
[1751995982671,0.76439,2616.1,2615.2,7.97481836]
[1751995982672,0.7645,2615.7,2615.6,3.2078]
[1751995983165,3.43575,2616.0,2615.6,3.2078]
[1751995983166,1.5247,2616.0,2615.6,3.2078]
[1751995983367,0.7645,2615.7,2615.6,3.2078]
[1751995983663,0.76462,2615.3,2615.2,3.2078]
[1751995984269,9.27099836,2615.8,2615.2,4.2091]
[1751995984270,3.2078,2615.8,2615.2,4.2091]
[1751995984667,1.5192,2615.9,2615.3,1.5494]
[1751995984868,0.76451,2615.7,2615.6,0.76452]
[1751995985070,0.76452,2615.7,2615.6,0.76451]
[1751995985271,0.76448,2615.8,2615.7,0.76447]
[1751995985472,0.76452,2615.7,2615.6,0.76452]
[1751995985974,0.76453,2615.6,2615.5,3.97234]
[1751995986371,0.76452,2615.7,2615.6,0.76453]
[1751995986772,0.76453,2615.6,2615.5,4.97364]
[1751995987175,0.76453,2615.7,2615.6,0.76452]
[1751995987375,3.40467,2616.0,2615.5,4.97364]
[1751995987569,3.2078,2616.2,2615.5,3.2078]
[1751995987770,0.76452,2615.7,2615.6,0.76452]
[1751995988175,0.76453,2615.6,2615.5,3.97235]
[1751995988376,0.76453,2615.6,2615.5,3.2078]
[1751995989067,0.76459,2615.4,2615.2,3.2078]
[1751995989272,0.76462,2615.3,2615.2,3.2078]
[1751995989468,2.33442,2615.3,2615.2,3.2078]
[1751995989671,2.33442,2615.3,2614.5,3.21091565]
[1751995989672,33.7088,2615.3,2614.5,2.64565929]
[1751995989873,0.76483,2614.6,2614.5,1.0013]
[1751995990077,0.76483,2614.6,2614.2,5.41741565]
[1751995990078,0.76491,2614.3,2614.2,3.2078]
[1751995990469,0.76491,2614.3,2614.2,3.97274]
[1751995990773,3.2078,2614.9,2614.2,3.2078]
[1751995990971,1.91173,2615.1,2614.3,9.52032986]
[1751995991174,3.2078,2615.2,2614.5,5.11995]
[1751995991476,3.97247,2615.2,2615.1,0.76468]
[1751995991978,3.2078,2615.2,2615.1,0.76468]
[1751995992174,55.82755,2615.6,2615.1,0.76468]
[1751995992479,55.82755,2615.6,2615.5,0.76456]
[1751995992679,0.76455,2615.6,2615.5,0.76456]
[1751995992974,0.76461,2615.4,2615.3,0.7646]
[1751995993673,0.76461,2615.4,2615.1,0.76466]
[1751995993674,0.76468,2615.2,2615.1,0.76466]
[1751995993875,0.76468,2615.1,2615.0,1.76599]
[1751995994077,0.76468,2615.1,2615.0,1.0013]
[1751995994477,0.76477,2614.8,2614.7,1.5597]
[1751995994683,0.76476,2614.9,2614.7,1.5597]
[1751995994881,0.76476,2614.9,2614.8,0.76476]
[1751995995677,0.76477,2614.8,2614.7,2.32447]
[1751995995877,0.76477,2614.8,2614.7,1.5597]
[1751995996079,0.76477,2614.8,2614.5,4.68]
[1751995996080,0.76483,2614.6,2614.5,0.76486]
[1751995996580,0.76486,2614.5,2614.4,1.76616]
[1751995996779,0.76485,2614.6,2614.5,0.76484]
[1751995997282,0.76485,2614.5,2614.4,1.0013]
[1751995997979,0.76491,2614.3,2614.2,1.6024]
[1751995998179,0.76491,2614.3,2614.2,2.36734]
[1751995999482,0.76491,2614.3,2614.2,1.6024]
[1751995999676,0.76491,2614.3,2614.2,2.36734]
[1751996001080,3.97267,2614.5,2614.4,0.76488]
[1751996001483,3.2078,2614.5,2614.2,2.6037]
[1751996001683,3.2078,2614.5,2614.2,4.1517]
[1751996001883,0.76491,2614.4,2614.3,0.76489]
[1751996002279,0.76491,2614.3,2614.2,2.36733]
[1751996002782,0.7649,2614.4,2614.3,0.76489]
[1751996003484,3.2078,2614.5,2614.2,0.76492]
[1751996003485,0.76494,2614.3,2614.2,0.76492]
[1751996004287,5.11998,2614.5,2614.0,0.76498]
[1751996004288,0.765,2614.1,2614.0,0.76498]
[1751996004483,1.91227,2614.4,2613.9,3.2078]
[1751996004484,0.76495,2614.3,2614.2,0.76492]
[1751996004783,0.76498,2614.2,2614.1,0.76495]
[1751996007182,3.2078,2614.5,2614.1,1.0324]
[1751996007386,0.76491,2614.3,2614.2,1.79733]
[1751996007687,0.76491,2614.4,2614.3,0.76488]
[1751996007890,0.76491,2614.4,2614.3,1.79728]
[1751996008184,0.76497,2614.2,2614.1,0.76495]
[1751996008786,0.76506,2613.9,2613.8,0.76502]
[1751996009176,0.76506,2613.8,2613.7,2.5531]
[1751996009377,0.76506,2613.8,2613.7,1.5207]
[1751996010181,0.76506,2613.8,2613.7,2.28579]
[1751996010585,0.76518,2613.4,2613.3,3.97298]
[1751996010776,0.76518,2613.4,2613.3,3.97301]
[1751996011083,0.76518,2613.4,2613.3,5.00541]
[1751996011386,0.76514,2613.6,2613.5,0.76511]
[1751996013384,0.76514,2613.6,2613.5,1.79751]
[1751996013584,0.7651,2613.7,2613.6,0.76509]
[1751996013985,0.76506,2613.8,2613.7,0.76509]
[1751996014191,1.5476,2614.1,2613.7,1.0324]
[1751996014490,4.6927,2614.2,2613.9,0.765]
[1751996014491,0.76501,2614.0,2613.9,0.765]
[1751996014886,0.76499,2614.1,2614.0,0.76497]
[1751996015086,3.97276,2614.2,2614.1,0.76497]
[1751996015287,0.76503,2614.0,2613.9,0.76501]
[1751996015485,0.76503,2613.9,2613.8,1.79743]
[1751996015686,0.76503,2613.9,2613.8,0.76503]
[1751996016288,0.76514,2613.7,2613.6,0.76509]
[1751996016488,3.2078,2613.9,2613.5,1.91285]
[1751996016694,3.97285,2613.9,2613.8,0.76506]
[1751996017389,1.91239,2614.2,2613.8,0.76506]
[1751996017390,3.2078,2614.2,2614.1,0.76497]
[1751996017587,3.2078,2614.5,2614.4,0.76488]
[1751996017894,3.2078,2614.5,2614.4,7.25617005]
[1751996019092,3.2078,2614.8,2614.7,0.76477]
[1751996019491,3.2078,2614.8,2614.7,1.79717]
[1751996019692,3.97257,2614.8,2614.7,1.0324]
[1751996019894,0.76481,2614.7,2614.5,0.76484]
[1751996020095,0.76481,2614.7,2614.5,1.79724]
[1751996020394,0.76483,2614.6,2614.5,1.79724]
[1751996020590,0.76482,2614.7,2614.6,0.7648]
[1751996020787,0.76483,2614.6,2614.5,1.79723]
[1751996021291,0.76485,2614.5,2614.4,0.76486]
[1751996021694,0.76485,2614.6,2614.5,0.76483]
[1751996022096,0.76488,2614.5,2614.4,0.76486]
[1751996022398,0.76485,2614.6,2614.5,0.76483]
[1751996022895,0.7649,2614.4,2614.3,0.76488]
[1751996023095,1.5165,2614.7,2614.5,0.76483]
[1751996023296,0.76485,2614.6,2614.5,0.76483]
[1751996023999,3.97257,2614.8,2614.7,0.7648]
[1751996024300,0.76483,2614.6,2614.5,1.79724]
[1751996024597,0.76491,2614.3,2614.2,2.5882]
[1751996024803,0.76491,2614.3,2614.2,1.5558]
[1751996025198,1.91231,2614.3,2613.9,2.69233271]
[1751996025497,0.765,2614.0,2613.9,1.65993271]
[1751996025698,0.76503,2613.9,2613.8,1.65993271]
[1751996026807,0.76506,2613.8,2613.7,3.93910271]
[1751996027208,0.76506,2613.8,2613.7,2.27917]
[1751996027903,3.97285,2613.9,2613.8,0.76506]
[1751996028912,3.97285,2613.9,2613.8,1.79746]
[1751996029308,0.76506,2613.8,2613.7,2.27917]
[1751996029509,0.76506,2613.8,2613.7,2.27919]
[1751996029910,0.76506,2613.8,2613.7,3.98069]
[1751996030111,0.76506,2613.8,2613.7,2.94829]
[1751996030311,0.76506,2613.8,2613.7,1.43419]
[1751996030511,1.43656,2613.8,2613.7,1.43419]
[1751996031917,0.76512,2613.6,2613.4,1.65993271]
[1751996032110,1.43662,2613.6,2613.5,0.6419]
[1751996032311,0.76515,2613.5,2613.4,1.65993271]
[1751996032516,0.76518,2613.4,2613.3,1.65993271]
[1751996032712,3.60388,2613.4,2613.3,1.65993271]
[1751996032911,0.76524,2613.2,2613.1,1.6670375]
[1751996033118,1.43674,2613.2,2613.1,1.6670375]
[1751996033320,0.6715,2613.2,2612.9,3.2078]
[1751996033512,0.76529,2613.0,2612.9,3.97311]
[1751996033813,0.6715,2613.0,2612.9,4.61502]
[1751996034011,0.76526,2613.2,2612.9,4.8075]
[1751996034217,0.76526,2613.2,2613.1,0.76524]
[1751996034612,0.76523,2613.3,2613.2,0.76521]
[1751996035817,0.76526,2613.2,2613.1,0.76525]
[1751996036014,0.6715,2613.3,2613.0,0.76529]
[1751996036015,0.76529,2613.1,2613.0,0.76529]
[1751996036610,0.76526,2613.2,2613.1,0.76524]
[1751996037615,0.76526,2613.2,2613.1,1.40714]
[1751996038017,0.76522,2613.4,2613.3,0.76516]
[1751996038218,0.76524,2613.3,2613.2,0.76521]
[1751996038419,0.76524,2613.2,2613.1,0.76526]
[1751996038722,0.76524,2613.2,2613.1,1.40716]
[1751996038907,1.5469,2613.3,2613.2,0.76524]
[1751996039108,3.97293,2613.6,2613.5,0.76515]
[1751996039312,0.76509,2613.8,2613.7,0.76507]
[1751996039513,0.76509,2613.8,2613.7,1.40697]
[1751996040116,0.6715,2613.8,2613.5,0.76512]
[1751996040321,0.6715,2613.8,2613.7,0.6419]
[1751996040814,1.43656,2613.8,2613.7,0.6419]
[1751996041013,0.76509,2613.7,2613.6,0.7651]
[1751996041413,0.76509,2613.7,2613.6,1.407]
[1751996041414,1.43659,2613.7,2613.6,1.407]
[1751996041615,1.43659,2613.7,2613.5,0.76513]
[1751996041616,0.76515,2613.6,2613.5,0.76513]
[1751996041809,0.6715,2613.7,2613.5,0.76513]
[1751996041810,0.76508,2613.8,2613.7,0.76506]
[1751996042013,0.76508,2613.8,2613.7,1.40696]
[1751996042318,1.43658,2613.8,2613.7,1.40696]
[1751996043419,0.76513,2613.7,2613.6,0.7651]
[1751996043612,0.76513,2613.7,2613.6,1.407]
[1751996043813,0.76513,2613.7,2613.6,2.3648]
[1751996044017,0.76508,2613.8,2613.7,0.76506]
[1751996044216,3.2078,2613.9,2613.8,0.76506]
[1751996044410,83.00502,2614.0,2613.9,0.76503]
[1751996044617,0.76503,2613.9,2613.8,0.76504]
[1751996044816,4.64433,2613.9,2613.8,1.40694]
[1751996045015,1.43653,2613.9,2613.8,0.76504]
[1751996045415,1.43653,2613.9,2613.8,1.40694]
[1751996045923,1.43653,2613.9,2613.8,0.6419]
[1751996046112,4.64433,2613.9,2613.8,0.6419]
[1751996047718,4.64433,2613.9,2612.9,6.37521565]
[1751996047719,1.91271,2613.8,2612.9,6.37521565]
[1751996048017,0.76528,2613.2,2613.1,0.76523]
[1751996048223,0.76528,2613.2,2613.1,0.6419]
[1751996048421,1.43678,2613.2,2613.1,0.6419]
[1751996048817,1.43674,2613.2,2613.1,0.6419]
[1751996049119,0.76524,2613.2,2613.1,0.6419]
[1751996049322,1.43674,2613.2,2613.1,0.6419]
[1751996049523,1.43674,2613.2,2613.1,1.5997]
[1751996050016,1.43674,2613.2,2613.1,0.6419]
[1751996050220,1.43674,2613.2,2612.9,3.97312]
[1751996050221,0.76529,2613.0,2612.9,3.97312]
[1751996050421,0.76529,2613.0,2612.9,5.57282]
[1751996050923,0.76529,2613.0,2612.9,3.8497]
[1751996051218,10.57997005,2613.0,2612.5,3.2078]
[1751996051423,0.76541,2612.6,2612.5,3.97324]
[1751996051618,0.76541,2612.6,2612.5,3.8497]
[1751996051824,1.9134,2612.8,2612.3,0.9578]
[1751996051825,0.76547,2612.4,2612.3,1.72329]
[1751996052124,0.76547,2612.4,2612.3,2.36519]
[1751996052723,0.76546,2612.5,2612.4,0.76544]
[1751996052922,0.76547,2612.4,2612.3,2.36518]
[1751996053322,1.5921,2612.8,2612.3,1.5997]
[1751996053524,0.76539,2612.7,2612.6,0.76538]
[1751996054026,27.133,2612.9,2612.4,1.5513]
[1751996054214,0.76538,2612.8,2612.7,0.76537]
[1751996054420,27.133,2612.9,2612.8,0.76535]
[1751996054620,3.9731,2613.0,2612.9,0.76532]
[1751996054913,0.76534,2612.9,2612.8,0.76533]
[1751996055113,0.76534,2612.9,2612.8,1.40723]
[1751996055417,0.76534,2612.9,2612.8,1.40725]
[1751996055621,0.76537,2612.8,2612.7,0.76536]
[1751996055924,0.76537,2612.8,2612.7,1.40726]
[1751996056121,0.76541,2612.6,2612.5,1.72323]
[1751996056427,0.76541,2612.6,2612.0,4.12357565]
[1751996056428,0.76546,2612.5,2612.4,0.76544]
[1751996056621,3.97322,2612.6,2612.5,0.76544]
[1751996056818,0.76553,2612.3,2612.1,1.4439]
[1751996057021,5.45889005,2612.3,2611.9,4.12364565]
[1751996057221,0.76558,2612.1,2612.0,0.76557]
[1751996057824,0.76555,2612.2,2612.1,0.76554]
[1751996058024,3.97323,2612.6,2612.2,1.91383]
[1751996058225,0.76551,2612.3,2612.2,0.76552]
[1751996058518,0.76553,2612.2,2612.1,0.76555]
[1751996059119,3.2078,2612.3,2612.2,0.76553]
[1751996059523,3.2078,2612.7,2612.6,0.76541]
[1751996060318,3.2078,2613.0,2612.9,0.76532]
[1751996060518,3.97309,2613.0,2612.9,0.76532]
[1751996060821,3.2078,2613.0,2612.9,0.76532]
[1751996061921,0.76522,2613.3,2612.7,5.12125]
[1751996062227,0.76524,2613.2,2613.1,0.76524]
[1751996062623,0.7653,2613.1,2613.0,0.76528]
[1751996062824,0.76533,2612.9,2612.8,0.76533]
[1751996063121,0.76537,2612.8,2612.7,0.76537]
[1751996064531,3.97309,2613.0,2612.9,0.76532]
[1751996064722,0.76527,2613.1,2613.0,0.76526]
[1751996064921,4.7099,2613.4,2612.9,1.91331]
[1751996065120,0.76522,2613.3,2613.2,0.76521]
[1751996065321,0.76526,2613.2,2613.1,0.76525]
[1751996065523,0.76532,2613.0,2612.9,0.76531]
[1751996065729,1.91312,2613.2,2612.9,0.76531]
[1751996065922,0.76531,2613.0,2612.9,0.76531]
[1751996066723,8.81843005,2613.3,2613.0,0.76527]
[1751996066724,0.76529,2613.1,2613.0,0.76527]
[1751996067416,1.44959,2613.1,2613.0,0.76527]
[1751996067622,1.44959,2613.1,2613.0,1.43877]
[1751996068223,0.76535,2612.8,2612.7,0.76535]
[1751996068423,1.44965,2612.8,2612.7,1.43885]
[1751996068929,1.44968,2612.8,2612.7,0.6735]
[1751996069427,0.7654,2612.7,2612.6,0.76538]
[1751996069818,1.4497,2612.7,2612.6,1.43888]
[1751996070022,0.76544,2612.5,2612.4,3.2078]
[1751996070222,1.44974,2612.5,2612.4,3.2078]
[1751996071528,0.76559,2612.1,2612.0,0.76558]
[1751996071726,0.7657,2611.6,2611.5,6.18313565]
[1751996071929,0.7657,2611.6,2611.5,5.41741565]
[1751996072224,6.93319005,2612.0,2611.5,2.20961565]
[1751996072527,0.76566,2611.8,2611.7,0.76565]
[1751996073125,0.76564,2611.9,2611.8,0.76563]
[1751996073328,0.76566,2611.8,2611.7,0.76566]
[1751996073728,0.76557,2612.1,2612.0,0.76556]
[1751996073928,3.97336,2612.2,2612.1,0.76556]
[1751996074129,0.7656,2612.0,2611.9,0.76562]
[1751996074328,5.45889005,2612.1,2611.7,1.0325]
[1751996074624,0.76565,2611.8,2611.7,1.79817]
[1751996075232,0.76565,2611.8,2611.7,1.79815]
[1751996075431,0.76564,2611.9,2611.8,0.76563]
[1751996075730,0.76567,2611.8,2611.7,0.76565]
[1751996075930,0.76567,2611.8,2611.5,1.4861]
[1751996075931,0.76573,2611.6,2611.5,0.7657]
[1751996076131,0.76573,2611.6,2611.5,3.9735]